Workbook

Sheet Sheet1
A1: USDA - RUS | C1: Title of Information Document | I1: OMB No.
J2: 0572-0112
A3: SUMMARY OF INFORMATION COLLECTION | C3: 7 CFR 1775 Technical Assistance Programs | I3: Date Prepared
J4: 2014-09-14
A5: INSTRUCTIONS: | E5: > | F5: (f) TOTAL | H5: (h) TOTAL
A6: Use this form when a single information collection document involves multiple reporting and | E6: > | F6: - | G6: = (e) Average | H6: - | I6: = (g) Average | J6: - | K6: = (j) Average
A7: recordkeeping requirements. | E7: > | F7: (d) TOTAL | H7: (f) TOTAL | J7: (i) TOTAL
A8: IDENTIFICATION OF REPORTING AND RECORDKEEPPING REQUIREMENTS | G8: ANNUAL BURDEN
C9: FORM | F9: REPORTS | J9: RECORDS
C10: NO(s) | D10: NO. OF | E10: NO. OF | F10: TOTAL | G10: HOURS | H10: TOTAL | I10: NO. OF | J10: ANNUAL | K10: TOTAL
A11: SECTION OF | C11: (If "none" | D11: RESPON- | E11: RESPONSES | F11: ANNUAL | G11: PER | H11: HOURS | I11: RECORD- | J11: HOURS PER | K11: RECORD-
A12: REGULATIONS | B12: DESCRIPTION | C12: so state) | D12: DENTS | E12: PER | F12: RESPONSES | G12: RESPONSE | H12: (Col. f & g) | I12: KEEPERS | J12: RECORD- | K12: KEEPING
E13: RESPON- | F13: (Col. d & e) | J13: KEEPER | K13: HOURS
E14: DENT | K14: (Col. i & j)
A15: (a) | B15: (b) | C15: (c) | D15: (d) | E15: (e) | F15: (f) | G15: (g) | H15: (h) | I15: (i) | J15: (j) | K15: (k)
B16: Items Cleared With This Package*
B18: Initial Application/Application Process
B20: Read Regulation/Application Guide | C20: N/A | D20: 142 | E20: 1 | F20: 142 | G20: 1 | H20: =SUM(F20*G20) -> 142
A22: 1775.10(c)(3) | B22: Certification Regarding Debarment, Suspension, and Other Responsibility Matters - Primary Covered Transactions | C22: AD-1047 | D22: 45 | E22: 1 | F22: =SUM(D22*E22) -> 45 | G22: 0.25 | H22: =SUM(F22*G22) -> 11
A24: 1775.10(c)(5) | B24: Certification Regarding Debarment | C24: AD-1048 | D24: 45 | E24: 1 | F24: =SUM(D24*E24) -> 45 | G24: 0.25 | H24: =SUM(F24*G24) -> 11
A26: 1775.10(c)(4) | B26: Certification Regarding Drug-Free Workplace Requirements (Grants) Alternative I - for Grantees Other Than Individuals | C26: AD-1049 | D26: 45 | E26: 1 | F26: =SUM(D26*E26) -> 45 | G26: 0.25 | H26: =SUM(F26*G26) -> 11
A28: 1775.10(c)(6) | B28: Documentation of assistance provided to Rural Development employees | C28: Written | D28: 142 | E28: 1 | F28: =SUM(D28*E28) -> 142 | G28: 0.25 | H28: =SUM(F28*G28) -> 36
A30: 1775.10(c)(9) | B30: Indirect Cost Agreement | C30: Written | D30: 142 | E30: 1 | F30: =SUM(D30*E30) -> 142 | G30: 1.00 | H30: =SUM(F30*G30) -> 142
A32: 1775.10(c)(10) | B32: Statement of Compliance , Title VI of Civil Rights Act of 1964 | C32: Written | D32: 45 | E32: 1 | F32: =SUM(D32*E32) -> 45 | G32: 0.50 | H32: =SUM(F32*G32) -> 23
A34: 1775.10 | B34: Statement concerning assistance under the National Forest Service-Dependent Rural Communities Economic Diversification Act | C34: Written | D34: 45 | E34: 1 | F34: =SUM(D34*E34) -> 45 | G34: 1.00 | H34: =SUM(F34*G34) -> 45
A36: 1775.10(d)(1) | B36: Legal Authority and Responsibility | C36: Written | D36: 142 | E36: 1 | F36: =SUM(D36*E36) -> 142 | G36: 0.25 | H36: =SUM(F36*G36) -> 36
A38: 1775.10(d)(2) | B38: Evidence of Tax Exempt Status | C38: Written | D38: 142 | E38: 1 | F38: 142 | G38: 0.25 | H38: =SUM(F38*G38) -> 36
A40: 1775.10(d)(3) | B40: Narrative | C40: Written
B41: Initial Submission | D41: 142 | E41: 1 | F41: 142 | G41: 2.00 | H41: =SUM(F41*G41) -> 284
B42: Revised Submission | D42: 26 | E42: 1 | F42: 26 | G42: 2.00 | H42: 52
A44: 1775.10(d)(8) | B44: Scope of Work | C44: Written
B45: Initial Submission | D45: 142 | E45: 1 | F45: 142 | G45: 12.00 | H45: =SUM(F45*G45) -> 1,704
B46: Revised Submission | D46: 26 | E46: 1 | F46: 26 | G46: 12.00 | H46: 312
A48: 1775.10(d)(6) | B48: Budget justification | C48: Written
B49: Initial Submission | D49: 142 | E49: 1 | F49: 142 | G49: 10.00 | H49: =SUM(F49*G49) -> 1,420
B50: Revised Submission | D50: 26 | E50: 1 | F50: 26 | G50: 10.00 | H50: 260
A52: 1775.10(d)(4) | B52: Latest Financial Information | C52: Written | D52: 142 | E52: 1 | F52: =SUM(D52*E52) -> 142 | G52: 1.00 | H52: =SUM(F52*G52) -> 142
A54: 1775.10(d)(7) | B54: Evidence of Financial Management System | C54: Written | D54: 142 | E54: 1 | F54: =SUM(D54*E54) -> 142 | G54: 0.25 | H54: =SUM(F54*G54) -> 36
B56: Post-Application
A57: 1775.13 | B57: Grant Agreement | C57: RUS Bulletin 1775-1 | D57: 45 | E57: 1 | F57: =SUM(D57*E57) -> 45 | G57: 2.00 | H57: =SUM(F57*G57) -> 90
A59: 1775.2 | B59: Project Performance Report | C59: Written | D59: 45 | E59: 4 | F59: =SUM(D59*E59) -> 180 | G59: 12.00 | H59: =SUM(F59*G59) -> 2,160
A61: 1775.21 | B61: Audit | C61: Written | D61: 6 | E61: 1 | F61: =SUM(D61*E61) -> 6 | G61: 3.00 | H61: =SUM(F61*G61) -> 18
A63: 1775.21 | B63: Financial Statements | C63: Written | D63: 39 | E63: 1 | F63: =SUM(D63*E63) -> 39 | G63: 1.00 | H63: =SUM(F63*G63) -> 39
B65: Total Hours This Package | D65: 142 | F65: =SUM(F20:F64) -> 1,993 | H65: =SUM(H20:H64) -> 7,008 | J65: Page __1__ of __2__
B66: Items Cleared Under Other Packages
A67: 1775.10(c)(1) | B67: Application for Federal Assistance (Non-construction Programs) | C67: SF-424
B68: Initial Submission | C68: (4040-0004) | D68: 142 | E68: 1 | F68: 142 | G68: 0.75 | H68: =SUM(F68*G68) -> 107
B69: Revised Submission | D69: 26 | E69: 1 | F69: 26 | G69: 0.75 | H69: 20
A71: 1775.10(c)(2) | B71: Budget Information--Non-Construction Programs | C71: SF-424A
B72: Initial Submission | C72: (4040-0006) | D72: 142 | E72: 1 | F72: 142 | G72: 3.00 | H72: =SUM(F72*G72) -> 426
B73: Revised Submission | D73: 26 | E73: 1 | F73: 26 | G73: 3.00 | H73: 78
A75: 1775.10(c)(2) | B75: Assurances--Non-construction Programs | C75: SF-424B
B76: Initial Submission | C76: (4040-0007) | D76: 142 | E76: 1 | F76: 142 | G76: 0.25 | H76: =SUM(F76*G76) -> 36
B77: Revised Submission | D77: 26 | E77: 1 | F77: 26 | G77: 0.25 | H77: 7
A79: 1775.10(c)(8) | B79: Equal Opportunity Agreement | C79: RD 400-1 | D79: 45 | E79: 1 | F79: =SUM(D79*E79) -> 45 | G79: 0.17 | H79: =SUM(F79*G79) -> 8
C80: (0575-0018)
A82: 1775.10(c)(7) | B82: Assurance Agreement | C82: RD 400-4 | D82: 45 | E82: 1 | F82: =SUM(D82*E82) -> 45 | G82: 0.25 | H82: =SUM(F82*G82) -> 11
C83: (0575-0018)
A85: 1775.18(a) | B85: Request for Advance or Reimbursement | C85: SF-270 | D85: 35 | E85: 12 | F85: =SUM(D85*E85) -> 420 | G85: 1.00 | H85: =SUM(F85*G85) -> 420
C86: (0348-0004) | D86: 10 | E86: 4 | F86: =SUM(D86*E86) -> 40 | G86: 1.00 | H86: =SUM(F86*G86) -> 40
A88: 1775.10(c)(11) | B88: Disclosure of Lobbying Activities | C88: SF LLL | D88: 45 | E88: 1 | F88: =SUM(D88*E88) -> 45 | G88: 0.25 | H88: =SUM(F88*G88) -> 11
C89: (4040-0013)
B91: Federal Financial Report | C91: SF-425 | D91: 45 | E91: 4 | F91: =SUM(D91*E91) -> 180 | G91: 1.50 | H91: =SUM(F91*G91) -> 270
C92: (0348-0061)
A93: RUS Form 36 (07-91) | J93: Page __2__ of __2__
A94: *Note: Private sector responses = 122. American Indian responses = 20. Total = 142

Sheet Sheet2

Sheet Sheet3
